bitfinex/quotes_ETHUSD_20230118
["timestamp","ask_amount","ask_price","bid_price","bid_amount"]
[1674049095035,1.0,1581.3,1581.2,0.10175306]
[1674049095247,0.23,1581.3,1581.2,0.10175306]
[1674049095940,3.11662407,1581.3,1581.2,0.10175306]
[1674049096306,3.34662407,1581.3,1581.2,0.10175306]
[1674049096527,0.23,1581.3,1581.2,0.10175306]
[1674049096957,0.236947,1581.4,1581.2,0.10175306]
[1674049097179,3.35357107,1581.4,1581.2,0.10175306]
[1674049097364,3.11662407,1581.3,1581.2,0.10175306]
[1674049097780,3.34662407,1581.3,1581.2,0.10175306]
[1674049097985,3.85903118,1581.3,1581.2,0.10175306]
[1674049098885,3.85903118,1581.3,1581.2,0.00075306]
[1674049099101,5.77503118,1581.3,1581.2,0.00075306]
[1674049099268,14.61503118,1581.3,1581.1,0.09572669]
[1674049099464,4.34662407,1581.2,1581.1,0.09372669]
[1674049099672,10.531,1581.1,1580.5,0.0998322]
[1674049099935,1.905,1580.7,1580.5,0.0998322]
[1674049100147,3.34662407,1580.6,1580.5,0.0998322]
[1674049100674,0.23,1580.6,1580.5,0.0998322]
[1674049100848,0.23,1580.6,1580.2,0.0051004]
[1674049100849,1.0,1580.5,1580.2,0.0051004]
[1674049101059,3.11662407,1580.5,1580.2,0.0051004]
[1674049101270,3.34662407,1580.4,1580.2,0.0051004]
[1674049101600,5.25162407,1580.4,1580.2,1e-08]
[1674049101807,0.296,1580.4,1580.2,1e-08]
[1674049102036,5.43200001,1580.6,1580.2,1e-08]
[1674049102412,5.43200001,1580.6,1580.3,3.11662407]
[1674049102618,5.43200001,1580.6,1580.4,0.31166241]
[1674049102857,5.43200001,1580.6,1580.3,0.10175306]
[1674049103215,5.43200001,1580.6,1580.4,3.11662407]
[1674049103353,5.43200001,1580.6,1580.5,3.0]
[1674049103931,5.43200001,1580.6,1580.4,0.5408]
[1674049104179,5.43200001,1580.6,1580.5,3.11662407]
[1674049104296,5.43200001,1580.6,1580.5,3.77576648]
[1674049104503,5.43200001,1580.6,1580.4,3.066]
[1674049104738,7.97574174,1580.6,1580.3,0.16775306]
[1674049104929,6.06874174,1580.6,1580.3,0.10175306]
[1674049105298,3.11662407,1580.5,1580.3,0.10175306]
[1674049105452,3.34662407,1580.4,1580.3,0.10175306]
[1674049105661,12.87602821,1580.4,1580.2,1e-08]
[1674049105978,3.7603128,1580.3,1580.2,1e-08]
[1674049106206,3.35357107,1580.3,1580.2,1e-08]
[1674049106553,4.32237299,1580.3,1580.2,1e-08]
[1674049106764,3.35357107,1580.3,1580.2,1e-08]
[1674049107049,0.23,1580.3,1580.2,1e-08]
[1674049107214,0.4747,1580.5,1580.2,1e-08]
[1674049107215,0.066,1580.5,1580.2,1e-08]
[1674049107535,3.34662407,1580.4,1580.2,1e-08]
[1674049107689,3.11662407,1580.3,1580.2,1e-08]
[1674049108249,3.82837107,1580.3,1580.2,1e-08]
[1674049108419,11.45017299,1580.3,1580.2,1e-08]
[1674049108632,11.51617299,1580.3,1580.2,1e-08]
[1674049108843,6.10899029,1580.3,1580.2,1e-08]
[1674049109107,4.38837299,1580.3,1580.2,1e-08]
[1674049109327,4.32237299,1580.3,1580.2,1e-08]
[1674049109636,3.34662407,1580.3,1580.2,1e-08]
[1674049109852,0.066,1580.4,1580.2,1e-08]
[1674049110021,7.35494701,1580.6,1580.2,1e-08]
[1674049110368,3.11662407,1580.5,1580.2,1e-08]
[1674049110583,5.43200001,1580.6,1580.2,3.11662408]
[1674049110901,5.43200001,1580.6,1580.3,3.0]
[1674049111048,5.43200001,1580.6,1580.2,1e-08]
[1674049111467,1.0,1580.5,1580.2,1e-08]
[1674049111844,0.1,1580.4,1580.2,1e-08]
[1674049112056,1.899,1580.4,1580.2,1e-08]
[1674049112274,3.11662407,1580.3,1580.2,1e-08]
[1674049112459,3.12357107,1580.3,1580.2,1e-08]
[1674049113211,3.35357107,1580.3,1580.2,1e-08]
[1674049113428,0.236947,1580.3,1580.2,1e-08]
[1674049113787,0.006947,1580.3,1580.2,1e-08]
[1674049114920,5.43200001,1580.6,1580.2,1e-08]
[1674049115069,8.54862408,1580.6,1580.2,1e-08]
[1674049115551,5.43200001,1580.6,1580.2,1e-08]
[1674049115916,8.54862408,1580.6,1580.2,1e-08]
[1674049116152,5.43200001,1580.6,1580.2,1e-08]
[1674049116368,8.54862408,1580.6,1580.2,1e-08]
[1674049116571,1.0,1580.5,1580.2,1e-08]
[1674049116800,4.12357107,1580.5,1580.2,1e-08]
[1674049117025,5.07912818,1580.5,1580.2,1e-08]
[1674049117223,5.14512818,1580.5,1580.2,1e-08]
[1674049117382,4.14512818,1580.5,1580.2,1e-08]
[1674049117752,0.23,1580.4,1580.2,1e-08]
[1674049118379,0.006947,1580.5,1580.2,1e-08]
[1674049118539,5.43200001,1580.6,1580.2,1e-08]
[1674049119843,5.43200001,1580.6,1580.2,0.47480001]
[1674049121512,4.11662407,1580.5,1580.2,1e-08]
[1674049121728,4.34662407,1580.5,1580.2,1e-08]
[1674049121900,3.11662407,1580.4,1580.2,1e-08]
[1674049122141,3.34662407,1580.3,1580.2,1e-08]
[1674049122801,0.23,1580.3,1580.2,1e-08]
[1674049123170,0.23,1580.4,1580.2,1e-08]
[1674049123380,3.11662407,1580.3,1580.2,1e-08]
[1674049123657,3.34662407,1580.3,1580.2,1e-08]
[1674049124173,0.066,1580.4,1580.2,1e-08]
[1674049124390,0.23,1580.3,1580.2,1e-08]
[1674049124703,0.23,1580.4,1580.2,1e-08]
[1674049124933,0.23,1580.5,1580.2,1e-08]
[1674049125220,0.7968947,1580.5,1580.2,1e-08]
[1674049125376,0.23,1580.5,1580.2,1e-08]
[1674049125798,5.43894701,1580.6,1580.2,1e-08]
[1674049127370,5.43200001,1580.6,1580.2,0.47480001]
[1674049127513,5.43200001,1580.6,1580.2,1e-08]
[1674049127914,5.43200001,1580.6,1580.3,5.03262407]
[1674049128249,0.066,1580.6,1580.5,1.916]
[1674049128581,0.00510039,1581.2,1580.5,5.03262407]
[1674049128791,0.00510039,1581.2,1580.8,3.11662407]
[1674049129178,0.00510039,1581.2,1580.9,3.0]
[1674049129676,0.00510039,1581.2,1580.8,0.066]
[1674049129976,1.10569092,1580.8,1580.7,0.4747]
[1674049130120,1.10569092,1580.8,1580.7,3.59132407]
[1674049130456,1.10569092,1580.8,1580.7,3.11662407]
[1674049130668,1.10569092,1580.8,1580.7,6.11662407]
[1674049131034,1.10569092,1580.8,1580.7,6.84835648]
[1674049132266,0.00510039,1581.2,1580.7,6.84835648]
[1674049132501,0.00510039,1581.2,1580.9,3.11662407]
[1674049132810,0.00510039,1581.2,1581.0,6.11662407]
[1674049132963,0.00310039,1581.2,1581.1,3.72828648]
[1674049133168,0.00310039,1581.2,1581.1,4.20278648]
[1674049133481,0.00310039,1581.2,1581.1,7.20278648]
[1674049133661,0.00310039,1581.2,1581.1,7.26878648]
[1674049133979,0.00310039,1581.2,1581.1,6.79428648]
[1674049134281,0.00310039,1581.2,1581.1,3.67766241]
[1674049134494,0.00310039,1581.2,1581.1,0.61166241]
[1674049134653,0.00310039,1581.2,1580.9,3.5406]
[1674049134857,0.00310039,1581.2,1581.0,3.11662407]
[1674049135074,0.00310039,1581.2,1581.1,3.0]
[1674049135318,0.00310039,1581.2,1581.1,7.11662407]
[1674049135645,0.00310039,1581.2,1581.1,7.65712407]
[1674049136019,0.00310039,1581.2,1581.1,8.42283648]
[1674049136226,0.00310039,1581.2,1581.1,7.42283648]
[1674049136642,0.00310039,1581.2,1581.1,4.30621241]
[1674049136887,0.00310039,1581.2,1581.0,3.5406]
[1674049137101,0.00310039,1581.2,1581.0,3.59122407]
[1674049137316,0.00310039,1581.2,1580.9,14.4221]
[1674049137649,0.00310039,1581.2,1580.9,0.066]
[1674049137800,0.00310039,1581.2,1580.7,0.66573241]
[1674049138008,0.00310039,1581.2,1580.7,3.78235648]
[1674049138217,0.00310039,1581.2,1580.8,0.37823565]
[1674049138849,0.00310039,1581.2,1580.8,3.37823565]
[1674049139060,0.00310039,1581.2,1580.8,3.0]
[1674049139542,0.00310039,1581.2,1580.7,0.066]
[1674049139851,0.01004739,1581.2,1580.6,0.5407]
[1674049140006,0.01004739,1581.2,1580.5,44.4121]
[1674049140220,3.12667146,1581.2,1580.5,14.4221]
[1674049140443,0.23,1581.1,1580.5,14.4221]
[1674049140743,0.23,1581.1,1580.5,17.53872407]
[1674049141477,0.01004739,1581.2,1580.6,3.11662407]
[1674049141738,0.01004739,1581.2,1580.7,6.11662407]
[1674049141925,0.01004739,1581.2,1580.8,0.61166241]
[1674049142536,0.01004739,1581.2,1580.8,1e-08]
[1674049142776,0.01004739,1581.2,1580.8,3.00000001]
[1674049143103,0.01004739,1581.2,1580.8,1e-08]
[1674049143480,0.01004739,1581.2,1580.6,3.0]
[1674049143739,3.12667146,1581.2,1580.6,3.0]
[1674049144109,0.01004739,1581.2,1580.6,7.11662407]
[1674049144314,0.01004739,1581.2,1580.7,3.11662407]
[1674049144564,0.00310039,1581.2,1580.7,3.11662407]
[1674049144801,0.00310039,1581.2,1580.8,6.90288648]
[1674049144966,0.00310039,1581.2,1580.9,3.11662407]
[1674049145296,0.00310039,1581.2,1581.0,7.11662407]
[1674049145524,0.00310039,1581.2,1581.1,1.0]
[1674049145885,0.00310039,1581.2,1581.1,4.11662407]
[1674049146135,0.00310039,1581.2,1581.1,7.98234648]
[1674049146366,0.00310039,1581.2,1581.1,4.93172241]
[1674049146674,0.00310039,1581.2,1581.1,3.86572241]
[1674049146832,0.34610039,1581.2,1581.0,3.5406]
[1674049147042,0.34610039,1581.2,1580.9,0.5406]
[1674049147304,0.34610039,1581.2,1580.8,0.78626241]
[1674049147626,0.34610039,1581.2,1580.8,3.59122407]
[1674049147627,0.00310039,1581.2,1580.8,3.59122407]
[1674049147782,0.00310039,1581.2,1580.9,3.11662407]
[1674049147992,0.00310039,1581.2,1581.0,3.11662407]
[1674049148220,0.00310039,1581.2,1581.1,6.03262407]
[1674049148440,0.00310039,1581.2,1581.1,6.09862407]
[1674049148645,0.00310039,1581.2,1581.1,8.75594648]
[1674049148857,0.00310039,1581.2,1581.1,6.83994648]
[1674049151173,0.00310039,1581.2,1581.1,9.21944648]
[1674049151384,0.09201846,1581.4,1581.1,9.21944648]
[1674049151595,0.09695203,1581.9,1581.3,3.11662407]
[1674049151800,0.09695203,1581.9,1581.2,4.0]
[1674049151801,0.09695203,1581.9,1581.4,6.42828648]
[1674049152038,0.09695203,1581.9,1581.5,3.11662407]
[1674049152255,0.09695203,1581.9,1581.6,6.11662407]
[1674049152549,0.09695203,1581.9,1581.7,3.11662407]
[1674049152862,0.09695203,1581.9,1581.7,6.11662407]
[1674049153031,0.09695203,1581.9,1581.7,3.066]
[1674049153394,0.09695203,1581.9,1581.8,3.11662407]
[1674049153697,0.09695203,1581.9,1581.8,6.11662407]
[1674049153867,0.09695203,1581.9,1581.8,6.18262407]
[1674049156869,0.09695203,1581.9,1581.8,3.066]
[1674049157034,0.09695203,1581.9,1581.8,0.637]
[1674049157457,0.09695203,1581.9,1581.8,5.14798407]
[1674049157689,0.09695203,1581.9,1581.8,8.21398407]
[1674049158568,0.09695203,1581.9,1581.8,4.09736]
[1674049158861,0.09695203,1581.9,1581.8,0.39436]
[1674049159263,0.09695203,1581.9,1581.7,3.3726]
[1674049159441,0.09695203,1581.9,1581.7,6.42322407]
[1674049159654,0.09695203,1581.9,1581.7,6.48922407]
[1674049160333,0.09695203,1581.9,1581.7,3.3726]
[1674049160548,0.09695203,1581.9,1581.7,3.3066]
[1674049160865,0.09695203,1581.9,1581.8,0.33066]
[1674049161175,0.09695203,1581.9,1581.8,1.33066]
[1674049161328,0.09695203,1581.9,1581.8,4.44728407]
[1674049161539,0.09695203,1581.9,1581.8,7.44728407]
[1674049161783,0.09695203,1581.9,1581.8,7.51328407]
[1674049162637,0.09695203,1581.9,1581.8,7.51128407]
[1674049162854,0.09695203,1581.9,1581.8,6.51328407]
[1674049164437,0.09695203,1581.9,1581.8,3.066]
[1674049164747,0.09695203,1581.9,1581.8,6.11662407]
[1674049164910,0.09695203,1581.9,1581.8,6.18262407]
[1674049171369,0.09695203,1581.9,1581.8,6.65692407]
[1674049171687,0.09695203,1581.9,1581.8,7.18262407]
[1674049171997,0.09493207,1582.0,1581.8,8.71362648]
[1674049172153,0.10808839,1582.1,1581.9,13.99962407]
[1674049172362,0.10808839,1582.1,1582.0,4.11662407]
[1674049172626,0.10808839,1582.1,1582.0,7.11662407]
[1674049172816,0.10808839,1582.1,1582.0,7.18262407]
[1674049173006,0.09663542,1582.7,1582.1,1.0]
[1674049173222,0.09663542,1582.7,1582.3,3.11662407]
[1674049173577,0.09663542,1582.7,1582.4,6.11662407]
[1674049173735,0.09663542,1582.7,1582.5,3.11662407]
[1674049173944,0.09663542,1582.7,1582.6,3.0]
[1674049174155,0.09663542,1582.7,1582.6,1.8295243]
[1674049174582,0.09663542,1582.7,1582.3,0.066]
[1674049174792,0.09663542,1582.7,1582.4,3.11662407]
[1674049175054,0.09663542,1582.7,1582.5,3.11662407]
[1674049175238,0.09663542,1582.7,1582.6,3.11662407]
[1674049175661,0.09663542,1582.7,1582.6,6.11662407]
[1674049175929,0.09663542,1582.7,1582.6,6.18262407]
[1674049176145,0.09663542,1582.7,1582.6,3.066]
[1674049176313,0.09663542,1582.7,1582.4,0.066]
[1674049176523,0.09663542,1582.7,1582.3,0.1977]
[1674049176869,0.09663542,1582.7,1582.4,3.0]
[1674049177694,0.006947,1582.6,1582.4,3.0]
[1674049177918,0.006947,1582.6,1582.2,0.066]
[1674049178133,0.31097942,1582.6,1582.1,10.066]
[1674049178292,0.236947,1582.6,1582.1,10.066]
[1674049178498,0.006947,1582.6,1582.1,13.18262407]
[1674049179189,0.006947,1582.6,1582.2,6.11662407]
[1674049179502,0.006947,1582.6,1582.2,6.18262407]
[1674049181070,0.09663542,1582.7,1582.2,6.18262407]
[1674049181385,0.09663542,1582.7,1582.2,3.066]
[1674049181604,0.09663542,1582.7,1582.1,0.066]
[1674049181814,0.09663542,1582.7,1582.1,3.11662407]
[1674049182130,0.09663542,1582.7,1582.2,3.0]
[1674049183286,0.59254311,1582.1,1582.0,3.0]
[1674049183448,0.59254311,1582.1,1582.0,6.305]
[1674049183654,0.066,1582.5,1582.1,1.0]
[1674049183902,0.09663542,1582.7,1582.1,3.0]
[1674049184281,1.006947,1582.6,1582.1,3.0]
[1674049184493,0.006947,1582.6,1582.0,3.066]
[1674049184818,0.006947,1582.6,1582.0,3.0]
[1674049185033,0.236947,1582.6,1582.0,3.0]
[1674049186485,0.236947,1582.6,1581.9,13.292]
[1674049186700,1.0,1582.5,1581.9,0.066]
[1674049189274,0.23,1582.5,1581.9,6.83636265]
[1674049190439,0.23,1582.5,1581.9,9.95298672]
[1674049190649,0.74998423,1582.7,1581.9,9.95298672]
[1674049190969,0.46646244,1582.7,1582.0,4.11192274]
[1674049191154,0.09663542,1582.7,1582.1,6.11662407]
[1674049191331,0.09663542,1582.7,1582.1,6.18262407]
[1674049191867,0.09663542,1582.7,1582.2,3.11662407]
[1674049192133,0.09663542,1582.7,1582.3,6.11662407]
[1674049192428,0.09663542,1582.7,1582.4,3.72828648]
[1674049192589,0.09663542,1582.7,1582.5,6.11662407]
[1674049192801,0.09663542,1582.7,1582.6,3.11662407]
[1674049193008,0.09663542,1582.7,1582.6,6.11662407]
[1674049193277,0.09663542,1582.7,1582.6,6.18262407]
[1674049193424,0.09663542,1582.7,1582.6,6.80088648]
[1674049194309,0.09663542,1582.7,1582.6,8.07288648]
[1674049194858,0.11241882,1583.3,1582.6,8.54698648]
[1674049195172,0.11241882,1583.3,1582.7,7.11662407]
[1674049195474,0.11241882,1583.3,1582.8,3.11662407]
[1674049195640,0.11241882,1583.3,1582.9,6.42828648]
[1674049195850,0.11241882,1583.3,1583.0,3.11662407]
[1674049197106,0.11241882,1583.3,1583.1,6.11662407]
[1674049197368,0.11241882,1583.3,1583.1,3.18262407]
[1674049197647,0.11241882,1583.3,1583.2,3.0]
[1674049197863,0.11241882,1583.3,1583.2,3.61166241]
[1674049198440,0.11241882,1583.3,1583.2,1.82990411]
[1674049198651,0.11241882,1583.3,1582.9,0.066]
[1674049198860,0.11241882,1583.3,1582.8,13.6946]
[1674049199315,0.11241882,1583.3,1582.8,16.81122407]
[1674049199652,0.11241882,1583.3,1582.9,3.11662407]
[1674049199807,0.11241882,1583.3,1583.0,0.31166241]
[1674049200138,0.11241882,1583.3,1583.0,3.31166241]
[1674049200328,0.11241882,1583.3,1583.1,3.11662407]
[1674049200540,0.11241882,1583.3,1583.2,6.11662407]
[1674049200769,0.11241882,1583.3,1583.2,3.18262407]
[1674049200977,0.11241882,1583.3,1583.2,6.56228648]
[1674049201228,0.11241882,1583.3,1583.2,6.62828648]
[1674049202488,0.11241882,1583.3,1583.2,3.066]
[1674049202638,0.11241882,1583.3,1583.1,3.066]
[1674049202845,0.11241882,1583.3,1583.2,3.11662407]
[1674049203054,0.11241882,1583.3,1583.2,7.38962407]
[1674049203328,0.11241882,1583.3,1583.2,7.45562407]
[1674049203476,0.11241882,1583.3,1583.2,8.80248648]
[1674049203904,0.11241882,1583.3,1583.2,9.80248648]
[1674049204254,0.11241882,1583.3,1583.2,8.80048648]
[1674049204585,0.11241882,1583.3,1583.2,7.05558648]
[1674049205352,0.11241882,1583.3,1583.2,6.18262407]
[1674049205779,0.11241882,1583.3,1583.2,0.066]
[1674049205928,0.11241882,1583.3,1583.2,3.11662407]
[1674049206278,0.11241882,1583.3,1583.0,0.066]
[1674049206492,0.11241882,1583.3,1582.9,10.066]
[1674049207099,0.11241882,1583.3,1582.9,0.066]
[1674049207342,0.20565838,1583.3,1582.8,13.6946]
[1674049207557,0.20565838,1583.3,1582.8,16.81122407]
[1674049208465,0.20565838,1583.3,1582.9,3.0]
[1674049209008,0.11936582,1583.3,1582.9,3.0]
[1674049209236,0.11936582,1583.3,1582.9,6.11662407]
[1674049209471,0.11241882,1583.3,1583.0,4.11662407]
[1674049209620,0.11241882,1583.3,1583.1,3.0]
[1674049210025,0.11241882,1583.3,1583.2,3.11662407]
[1674049210294,0.11241882,1583.3,1583.2,6.11662407]
[1674049210603,0.11241882,1583.3,1583.2,3.066]
[1674049210820,0.11241882,1583.3,1583.1,0.81076241]
[1674049210971,0.11241882,1583.3,1583.2,3.11662407]
[1674049211184,0.11241882,1583.3,1583.2,3.0]
[1674049211391,0.11241882,1583.3,1583.0,3.066]
[1674049211646,0.11241882,1583.3,1583.1,3.11662407]
[1674049211860,0.11241882,1583.3,1583.2,3.0]
[1674049212074,0.11241882,1583.3,1583.2,6.72828648]
[1674049212240,0.11241882,1583.3,1583.2,6.79428648]
[1674049212454,0.11241882,1583.3,1583.2,9.06828648]
[1674049213284,0.11376508,1583.4,1583.2,13.04218648]
[1674049213597,0.11376508,1583.4,1583.3,5.38962407]
[1674049213768,0.11376508,1583.4,1583.3,9.98364272]
[1674049214486,0.11983573,1583.7,1583.4,7.653]
[1674049214698,0.11983573,1583.7,1583.6,3.11662407]
[1674049215006,0.11983573,1583.7,1583.6,6.11662407]
[1674049215123,0.11983573,1583.7,1583.6,6.18262407]
[1674049215339,0.11983573,1583.7,1583.6,6.97566648]
[1674049216523,0.11983573,1583.7,1583.6,6.97366648]
[1674049216694,0.11983573,1583.7,1583.6,6.97566648]
[1674049217566,0.11983573,1583.7,1583.6,8.24966648]
[1674049219691,0.11983573,1583.7,1583.6,6.97566648]
[1674049220518,0.11983573,1583.7,1583.6,9.52366648]
[1674049220729,0.11983573,1583.7,1583.6,9.99746648]
[1674049220964,0.13034628,1583.9,1583.7,8.77174665]
[1674049221165,0.13034628,1583.9,1583.8,7.11662407]
[1674049221427,0.13034628,1583.9,1583.8,10.20432407]
[1674049221729,0.13034628,1583.9,1583.8,17.08732407]
[1674049222337,0.21489478,1584.0,1583.9,7.653]
[1674049222696,0.12661838,1584.5,1584.1,6.653]
[1674049222873,0.12661838,1584.5,1584.4,3.11662407]
[1674049223423,0.12661838,1584.5,1584.4,1.83082435]
[1674049223570,0.12661838,1584.5,1584.2,0.066]
[1674049223955,0.12661838,1584.5,1583.9,16.05813241]
[1674049224144,0.12661838,1584.5,1584.0,4.72243731]
[1674049224375,0.12661838,1584.5,1584.1,3.11662407]
[1674049224670,0.12661838,1584.5,1584.2,3.11662407]
[1674049224842,0.12661838,1584.5,1584.3,3.11662407]
[1674049225052,0.12661838,1584.5,1584.4,3.11662407]
[1674049225287,0.12661838,1584.5,1584.4,3.42828648]
[1674049225495,0.12661838,1584.5,1584.4,6.42828648]
[1674049225711,0.12661838,1584.5,1584.4,7.76828648]
[1674049226145,1.838e-05,1584.5,1584.4,7.76828648]
[1674049228928,0.34301838,1584.5,1584.4,7.45662407]
[1674049229140,0.34301838,1584.5,1584.4,3.066]
[1674049229381,0.34301838,1584.5,1584.2,3.066]
[1674049229619,0.34301838,1584.5,1584.3,3.11662407]
[1674049230228,1.838e-05,1584.5,1584.3,3.11662407]
[1674049230417,1.838e-05,1584.5,1584.3,3.73488648]
[1674049230821,1.838e-05,1584.5,1584.4,3.11662407]
[1674049233719,1.838e-05,1584.5,1584.4,6.11662407]
[1674049233924,1.838e-05,1584.5,1584.4,6.18262407]
[1674049234111,1.838e-05,1584.5,1584.4,7.45562407]
[1674049234326,1.838e-05,1584.5,1584.4,8.49041272]
[1674049234538,1.838e-05,1584.5,1584.4,7.21741272]
[1674049236031,1.838e-05,1584.5,1584.4,6.18262407]
[1674049236347,0.34301838,1584.5,1584.4,6.18262407]
[1674049236500,0.34301838,1584.5,1584.4,3.066]
[1674049236715,1.838e-05,1584.5,1584.4,3.0]
[1674049236921,0.34301838,1584.5,1584.4,3.0]
[1674049237200,0.34301838,1584.5,1584.2,0.066]
[1674049237378,0.34301838,1584.5,1584.3,3.11662407]
[1674049237722,1.838e-05,1584.5,1584.3,3.11662407]
[1674049238716,1.27401838,1584.5,1584.2,0.064]
[1674049238978,1.264,1584.3,1583.9,14.2494]
[1674049239160,0.76414357,1584.4,1583.9,3.18262407]
[1674049239343,0.76414357,1584.4,1583.7,0.066]
[1674049239711,1.838e-05,1584.5,1583.6,32.3661]
[1674049239712,1.27401838,1584.5,1583.8,3.11662407]
[1674049239902,1.838e-05,1584.5,1583.9,3.11662407]
[1674049240116,1.838e-05,1584.5,1584.0,3.11662407]
[1674049240285,1.838e-05,1584.5,1584.1,3.11662407]
[1674049240497,1.838e-05,1584.5,1584.2,3.11662407]
[1674049241775,2.04176425,1584.5,1584.1,0.066]
[1674049241965,2.04176425,1584.5,1584.1,3.11662407]
[1674049242176,0.006947,1584.4,1584.0,0.066]
[1674049242388,1.280947,1584.4,1584.0,3.11662407]
[1674049242597,1.91768873,1584.4,1584.1,3.0]
[1674049243080,1.280947,1584.4,1584.1,3.0]
[1674049243688,1.48681812,1584.4,1584.1,3.0]
[1674049243909,0.006947,1584.4,1584.1,6.11662407]
[1674049244101,0.006947,1584.4,1584.1,6.18262407]
[1674049245306,1.27401838,1584.5,1584.2,3.11662407]
[1674049245518,1.838e-05,1584.5,1584.3,3.11662407]
[1674049245884,1.10325571,1584.2,1584.1,3.0]
[1674049246197,1.10325571,1584.2,1584.1,3.41662407]
[1674049246530,1.10325571,1584.2,1584.1,6.41662407]
[1674049246754,1.10325571,1584.2,1584.1,6.48262407]
[1674049247148,1.10325571,1584.2,1584.1,6.95622407]
[1674049247466,1.10325571,1584.2,1584.1,7.74562407]
[1674049248827,1.10325571,1584.2,1584.1,8.21922407]
[1674049249038,1.10325571,1584.2,1584.1,15.87222407]
[1674049249250,1.10325571,1584.2,1584.1,16.10222407]
[1674049250561,0.95325571,1584.2,1584.1,16.10222407]
[1674049251301,0.95325571,1584.2,1584.1,9.44922407]
[1674049251453,0.95325571,1584.2,1584.1,8.74562407]
[1674049252138,0.95325571,1584.2,1584.1,7.74562407]
[1674049252304,0.95325571,1584.2,1584.1,6.48262407]
[1674049254623,0.95325571,1584.2,1584.1,7.48262407]
[1674049255254,0.95325571,1584.2,1584.1,14.13562407]
[1674049255614,0.95325571,1584.2,1584.1,13.36562407]
[1674049256139,1.838e-05,1584.5,1584.4,9.76962407]
[1674049256450,1.838e-05,1584.5,1584.4,14.10962407]
[1674049256601,1.838e-05,1584.5,1584.4,14.33962407]
[1674049257044,1.838e-05,1584.5,1584.4,14.99648626]
[1674049257391,1.838e-05,1584.5,1584.4,15.47008626]
[1674049257545,1.838e-05,1584.5,1584.4,17.24172691]
[1674049257753,1.838e-05,1584.5,1584.4,16.58486472]
[1674049257993,1.838e-05,1584.5,1584.4,9.70186472]
[1674049259290,1.838e-05,1584.5,1584.4,7.95426472]
[1674049259489,1.838e-05,1584.5,1584.4,6.18262407]
[1674049260862,1.838e-05,1584.5,1584.4,7.83948626]
[1674049261280,1.838e-05,1584.5,1584.4,14.82094427]
[1674049261491,1.838e-05,1584.5,1584.4,15.05094427]
[1674049261864,1.838e-05,1584.5,1584.4,23.04634923]
[1674049262087,1.838e-05,1584.5,1584.4,21.99834415]
[1674049262538,1.838e-05,1584.5,1584.4,20.84575128]
[1674049262703,1.838e-05,1584.5,1584.4,22.48236418]
[1674049263367,1.838e-05,1584.5,1584.4,21.16783189]
[1674049263582,0.12574491,1584.8,1584.6,6.653]
[1674049263808,4.491e-05,1584.8,1584.7,16.63134228]
[1674049264026,0.13730691,1585.0,1584.8,1.0]
[1674049264230,0.13730691,1585.0,1584.9,3.34662407]
[1674049264390,0.13730691,1585.0,1584.9,6.55128648]
[1674049264604,0.13730691,1585.0,1584.9,6.61728648]
[1674049264949,0.13730691,1585.0,1584.9,14.54328648]
[1674049265122,0.13730691,1585.0,1584.9,9.15428648]
[1674049265653,0.13730691,1585.0,1584.9,15.80728648]
[1674049265841,0.13730691,1585.0,1584.9,9.38428648]
[1674049266413,0.13730691,1585.0,1584.9,16.03728648]
[1674049267607,0.13730691,1585.0,1584.9,9.15428648]
[1674049267783,0.13730691,1585.0,1584.9,6.61728648]
[1674049268199,0.13730691,1585.0,1584.9,7.88028648]
[1674049268566,0.13730691,1585.0,1584.9,14.53328648]
[1674049268866,0.13730691,1585.0,1584.9,7.88028648]
[1674049269086,0.03730691,1585.0,1584.9,7.88028648]
[1674049269617,0.14073477,1585.2,1584.9,15.79728648]
[1674049269755,0.14073477,1585.2,1585.1,9.76962407]
[1674049269969,0.14073477,1585.2,1585.1,13.33562407]
[1674049270181,0.14073477,1585.2,1585.1,12.83562407]
[1674049270454,3.427e-05,1585.3,1585.2,7.653]
[1674049270600,3.427e-05,1585.3,1585.2,16.99618648]
[1674049270811,3.427e-05,1585.3,1585.2,16.76618648]
[1674049271022,0.34303427,1585.3,1585.2,3.18262407]
[1674049271280,0.34303427,1585.3,1585.2,3.11662407]
[1674049271620,3.427e-05,1585.3,1585.2,3.11662407]
[1674049271760,3.427e-05,1585.3,1585.2,4.39062407]
[1674049272121,3.427e-05,1585.3,1585.2,12.31462407]
[1674049272280,3.427e-05,1585.3,1585.2,13.61868648]
[1674049272725,3.427e-05,1585.3,1585.2,16.61868648]
[1674049273043,3.427e-05,1585.3,1585.2,16.84868648]
[1674049274860,1.04214127,1585.6,1585.4,6.653]
[1674049275184,1.04214127,1585.6,1585.5,12.99962407]
[1674049275338,1.04214127,1585.6,1585.5,8.89058648]
[1674049275535,1.04214127,1585.6,1585.5,7.61658648]
[1674049275979,1.04214127,1585.6,1585.5,14.49958648]
[1674049276395,1.04214127,1585.6,1585.5,15.76258648]
[1674049276585,0.13730691,1585.8,1585.7,9.76962407]
[1674049276795,0.13730691,1585.8,1585.7,14.33862407]
[1674049277342,0.0056767,1585.9,1585.7,15.61262407]
[1674049277676,0.0056767,1585.9,1585.8,16.54362407]
[1674049278008,0.0056767,1585.9,1585.8,16.60962407]
[1674049278254,0.0056767,1585.9,1585.8,19.66232065]
[1674049279213,0.0056767,1585.9,1585.8,18.66232065]
[1674049279472,0.0056767,1585.9,1585.8,24.39532065]
[1674049279643,0.0056767,1585.9,1585.8,24.39332065]
[1674049280440,0.0056767,1585.9,1585.8,18.66632065]
[1674049280598,2.050095,1586.6,1585.9,6.653]
[1674049280599,0.006947,1586.5,1585.9,6.653]
[1674049280784,0.006947,1586.5,1586.1,4.38662407]
[1674049280998,0.191095,1586.6,1586.4,3.11662407]
[1674049281269,0.191095,1586.6,1586.5,4.94886437]
[1674049281442,0.191095,1586.6,1586.5,1.94886437]
[1674049281794,0.191095,1586.6,1586.3,0.066]
[1674049281795,1.75183504,1586.4,1586.3,0.066]
[1674049282104,3.20796554,1586.4,1586.0,0.066]
[1674049282331,3.66952377,1586.4,1586.2,3.11662407]
[1674049282472,1.75878204,1586.4,1586.3,3.11662407]
[1674049282677,1.75183504,1586.4,1586.3,3.11662407]
[1674049282888,1.75183504,1586.4,1586.1,0.066]
[1674049283140,1.75183504,1586.4,1586.2,3.11662407]
[1674049283469,0.006947,1586.3,1586.0,0.066]
[1674049283789,0.006947,1586.3,1586.1,3.11662407]
[1674049284607,1.274,1586.2,1585.9,0.066]
[1674049284779,0.006947,1586.3,1586.0,3.11662407]
[1674049285454,1.006947,1586.3,1586.0,3.11662407]